{"text_format":"1","workbook":"xlsx","n_sheets":2,"sheets":["Data","More"],"not_rendered":{"charts":0,"images":0,"macros":1,"external_links":0,"defined_names":1,"comments":1,"pivot_tables":0},"unopened":[],"bounds":{"document_bytes":16777216,"sheet_cells":100000,"rows_first":2000,"rows_last":500,"rows_between":2000,"halvings":0,"cell_chars":16384,"cell_head_chars":4096},"cells_cut":0,"cells_raw":0,"read":"whole","date_system":"1900"}

{"sheet":"Data","index":0,"n_rows":200,"n_cols":9,"rows_kept":200,"cut":false,"hidden":false,"merged":[[1,0,1,6],[3,0,3,6],[8,0,8,1],[8,2,8,8],[4,2,4,6],[5,2,5,6],[6,2,6,6]]}
[]
["CLB DNQT MN ORGANIZATION CHART V2.2 (2025)"]
[null,null,null,null,null,null,"Input Data Template for LAZINET OrgChart V2.2 (20250722)"]
["Configuration"]
[1,"Fill cell C5 then press Ctrl + Shift + M","#F8CBAD"]
[2,"Background URL (if set)","https://wallpapersafari.com/download/x58BEZ/"]
[3,"Default portrait URL (if set)","https://static.vecteezy.com/system/resources/thumbnails/002/318/271/small/user-profile-icon-free-vector.jpg"]
[]
["Table of Information"]
["Key","Full_Name","Professional_Title","Department_Team","Lead_Title","Supervisor_Key","Portrait_URL","Profile_URL","Remarks"]
[{"$f":"IF(ISBLANK(B11), \"\", ROW()-10)","v":1},"CLB DOANH NHÂN","QUẢNG TRỊ MIỀN NAM","CLB DNQTMN","Sơ đồ tổ chức",null,"https://dnqt.vn/assets/logos/Logo-bgWhite.png","https://dnqt.vn/"]
[{"$f":"IF(ISBLANK(B12), \"\", ROW()-10)","v":2},"HOÀNG TOÀN","Cố vấn","CLB DNQTMN","Câu lạc bộ",1,"https://dnqt.vn/assets/team/Toan.jpg","https://khangvietbook.com.vn/"]
[{"$f":"IF(ISBLANK(B13), \"\", ROW()-10)","v":3},"NGUYỄN ĐẶNG HIẾN","Chủ nhiệm","CLB DNQTMN","Câu lạc bộ",1,"https://dnqt.vn/assets/team/NDH.jpg","https://bidrico.com.vn/"]
[{"$f":"IF(ISBLANK(B14), \"\", ROW()-10)","v":4},"LÊ PHƯỚC TRUNG","Phó chủ nhiệm thường trực","CLB DNQTMN","KẾT NỐI GIAO THƯƠNG",3,"https://dnqt.vn/assets/team/Trung.jpeg"]
[5,"HỒ XUÂN DŨNG","Phó chủ nhiệm thường trực","CLB DNQTMN","ĐỐI NỘI",3,"https://dnqt.vn/assets/team/Dung.jpg","http://www.svsolution.com.vn/"]
[6,"LÊ PHƯỚC BÌNH","Phó chủ nhiệm thường trực","CLB DNQTMN","ĐỐI NGOẠI",3,"https://dnqt.vn/assets/team/Binh.jpg","https://www.minhglobal.com/"]
[{"$f":"IF(ISBLANK(B17), \"\", ROW()-10)","v":7},"NGUYỄN NGỌC TÝ","Trưởng ban","CLB DNQTMN","Ban Thông tin Truyền thông",6,"https://dnqt.vn/assets/team/Ty.jpg"]
[{"$f":"IF(ISBLANK(B18), \"\", ROW()-10)","v":8},"LÊ VĂN CẦU","Trưởng ban","CLB DNQTMN","Ban Hội viên",5,"https://dnqt.vn/assets/team/Cau.jpg"]
[{"$f":"IF(ISBLANK(B19), \"\", ROW()-10)","v":9},"NGUYỄN QUANG THẮNG","Trưởng ban, Golf & Bóng đá","CLB DNQTMN","Ban Thể thao - Văn hóa",6,"https://dnqt.vn/assets/team/Thang.jpg"]
[{"$f":"IF(ISBLANK(B20), \"\", ROW()-10)","v":10},"LÊ VIẾT KỲ","Tổng thư ký","CLB DNQTMN","ĐIỀU HÀNH",3,"https://dnqt.vn/assets/team/Ky.jpg"]
[11,"LÊ MINH PHỤNG","Tài chính & Ký kết HĐ","CLB DNQTMN","Ban Kết nối Giao thương",4,"https://dnqt.vn/assets/team/PhungLe.jpg"]
[{"$f":"IF(ISBLANK(B22), \"\", ROW()-10)","v":12},"LÊ VIẾT KỲ","Hành chính","CLB DNQTMN","Ban Kết nối Giao thương",4,"https://dnqt.vn/assets/team/Ky.jpg"]
[{"$f":"IF(ISBLANK(B23), \"\", ROW()-10)","v":13},"HOÀNG MINH PHỤNG","Xúc tiến Giao thương","CLB DNQTMN","Ban Kết nối Giao thương",4,"https://dnqt.vn/assets/team/PhungHoang.png","https://hathyo.com"]
[14,"LÊ VĂN CẦU","Tổ Tennis","CLB DNQTMN","Ban Thể thao - Văn hóa",9,"https://dnqt.vn/assets/team/Cau.jpg"]
[15,"LÊ MINH PHỤNG","Xét duyệt Thành viên","CLB DNQTMN","Ban Hội viên",8,"https://dnqt.vn/assets/team/PhungLe.jpg"]
[16,"LÊ VIẾT KỲ","Tư vấn Pháp lý DN","CLB DNQTMN","Ban Hội viên",8,"https://dnqt.vn/assets/team/Ky.jpg"]
[17,"LÊ PHƯỚC TRUNG","Phát triển Hội viên","CLB DNQTMN","Ban Hội viên",8,"https://dnqt.vn/assets/team/Trung.jpeg"]
[18,"TRẦN BÁ ĐIỀN","Tổ chức Sự kiện","CLB DNQTMN","Ban Thông tin Truyền thông",7,"https://dnqt.vn/assets/team/Dien.jpg"]
[{"$f":"IF(ISBLANK(B29), \"\", ROW()-10)","v":19},"HOÀNG MINH PHỤNG","Công nghệ & TMĐT","CLB DNQTMN","Ban Thông tin Truyền thông",7,"https://dnqt.vn/assets/team/PhungHoang.png","https://lazinet.com"]
[20,"PHÚ TỐNG","Digital Marketing","CLB DNQTMN","Ban Thông tin Truyền thông",18,"https://dnqt.vn/assets/team/Phu.jpeg"]
[21,"VÕ THI NHÂN","Hậu cần & hỗ trợ","CLB DNQTMN","Ban thư ký",10,"https://dnqt.vn/assets/team/Nhan2.jpg"]
[22,"LÊ MINH SANG","Hậu cần & hỗ trợ","CLB DNQTMN","Ban thư ký",10,"https://dnqt.vn/assets/team/Sang.jpeg"]
[23,"NGUYỄN MẠNH TRÍ","Trợ lý","CLB DNQTMN","Ban thư ký",10,"https://dnqt.vn/assets/team/Tri.jpeg"]
[24,"THÀNH VIÊN","Hậu cần & hỗ trợ","CLB DNQTMN","Ban thư ký",10]
[25,"THÀNH VIÊN MỚI","Hỗ trợ doanh nghiệp","CLB DNQTMN","Ban Kết nối Giao thương",4]
[26,"LÊ VĂN HÙNG","CNTT & Ứng dụng","CLB DNQTMN","Ban Thông tin Truyền thông",19,"https://dnqt.vn/assets/team/Hung.jpeg"]
[27,"THÀNH VIÊN MỚI","Tổ Triathlon","CLB DNQTMN","Ban Thể thao - Văn hóa",14]
[28,"TRẦN MẠNH CHÍ","Hậu cần & hỗ trợ","CLB DNQTMN","Ban thư ký",10,"https://dnqt.vn/assets/team/Chi.jpeg"]
[29,"THÀNH VIÊN MỚI","Chăm sóc & Hỗ trợ","CLB DNQTMN","Ban Hội viên",8]
[""]
[""]
[""]
[""]
[""]
[""]
[""]
[""]
[""]
[""]
[""]
[""]
[""]
[""]
[""]
[""]
[""]
[""]
[""]
[""]
[""]
[""]
[""]
[""]
[""]
[""]
[""]
[""]
[""]
[""]
[""]
[""]
[{"$f":"IF(ISBLANK(B72), \"\", ROW()-10)","v":""}]
[""]
[""]
[""]
[""]
[""]
[""]
[""]
[""]
[""]
[""]
[""]
[""]
[""]
[""]
[""]
[""]
[""]
[""]
[""]
[""]
[""]
[""]
[""]
[""]
[""]
[""]
[""]
[""]
[""]
[""]
[""]
[""]
[""]
[""]
[""]
[""]
[""]
[""]
[""]
[""]
[""]
[""]
[""]
[""]
[""]
[""]
[""]
[""]
[""]
[""]
[""]
[""]
[""]
[""]
[""]
[""]
[""]
[""]
[""]
[""]
[""]
[""]
[""]
[{"$f":"IF(ISBLANK(B136), \"\", ROW()-10)","v":""}]
[""]
[""]
[""]
[""]
[""]
[""]
[""]
[""]
[""]
[""]
[""]
[""]
[""]
[""]
[""]
[""]
[""]
[""]
[""]
[""]
[""]
[""]
[""]
[""]
[""]
[""]
[""]
[""]
[""]
[""]
[""]
[""]
[""]
[""]
[""]
[""]
[""]
[""]
[""]
[""]
[""]
[""]
[""]
[""]
[""]
[""]
[""]
[""]
[""]
[""]
[""]
[""]
[""]
[""]
[""]
[""]
[""]
[""]
[""]
[""]
[""]
[""]
[""]
[{"$f":"IF(ISBLANK(B200), \"\", ROW()-10)","v":""}]

{"sheet":"More","index":1,"n_rows":3,"n_cols":3,"rows_kept":3,"cut":false,"hidden":false,"merged":[]}
[]
[null,"Nguồn ảnh nền tốt"]
[null,null,"https://wallpapersafari.com/search?q=4k"]